fUSD/lending_fUSD_20240523
["ID","MTS","AMOUNT","RATE_DAILY","PERIOD"]
[327805506,1716495049255,-500.0,0.00022739,2]
[327805507,1716495049266,-503.1,0.00022739,2]
[327805508,1716495049276,-500.0,0.00022739,2]
[327805509,1716495049285,-500.0,0.00022739,2]
[327805510,1716495049295,-500.0,0.00022739,2]
[327805511,1716495049306,-689.78,0.00022739,2]
[327805512,1716495049316,-541.94,0.00022739,2]
[327805513,1716495049327,-980.66,0.00022739,2]
[327805514,1716495049336,-500.0,0.00022739,2]
[327805515,1716495049346,-500.0,0.00022739,2]
[327805516,1716495049355,-500.0,0.00022739,2]
[327805517,1716495049364,-500.0,0.00022739,2]
[327805518,1716495049374,-919.72,0.00022739,2]
[327805519,1716495049383,-609.39,0.00022739,2]
[327805520,1716495049392,-500.0,0.00022739,2]
[327805521,1716495049442,-500.0,0.00022739,2]
[327805522,1716495049452,-500.0,0.00022739,2]
[327805523,1716495049462,-500.0,0.00022739,2]
[327805524,1716495049473,-826.38,0.00022739,2]
[327805525,1716495049482,-500.0,0.00022739,2]
[327805526,1716495049491,-1330.87,0.00022739,2]
[327805527,1716495049501,-500.0,0.00022739,2]
[327805528,1716495049510,-500.0,0.00022739,2]
[327805529,1716495049520,-1563.58,0.00022739,2]
[327805530,1716495049530,-500.0,0.00022739,2]
[327805531,1716495049540,-500.0,0.00022739,2]
[327805532,1716495049550,-500.0,0.00022739,2]
[327805533,1716495049559,-500.0,0.00022739,2]
[327805534,1716495049570,-500.0,0.00022739,2]
[327805535,1716495049579,-1168.78,0.00022739,2]
[327805536,1716495049588,-500.0,0.00022739,2]
[327805537,1716495049598,-500.0,0.00022739,2]
[327805538,1716495049607,-500.0,0.00022739,2]
[327805539,1716495049616,-500.01,0.00022739,2]
[327805540,1716495049626,-500.0,0.00022739,2]
[327805541,1716495049635,-500.0,0.00022739,2]
[327805542,1716495049644,-500.0,0.00022739,2]
[327805543,1716495049653,-500.0,0.00022739,2]
[327805544,1716495049663,-500.0,0.00022739,2]
[327805545,1716495049672,-500.0,0.00022739,2]
[327805546,1716495049682,-531.02825067,0.00022739,2]
[327805547,1716495049691,-667.07,0.00022739,2]
[327805548,1716495049700,-500.0,0.00022739,2]
[327805549,1716495049710,-500.0,0.00022739,2]
[327805550,1716495049722,-5628.15,0.00022739,2]
[327805551,1716495049731,-500.0,0.00022739,2]
[327805552,1716495049740,-500.0,0.00022739,2]
[327805553,1716495049749,-7035.79,0.00022739,2]
[327805554,1716495049759,-500.0,0.00022739,2]
[327805555,1716495049768,-502.75426729,0.00022745,2]
[327805556,1716495049777,-274.61468466,0.00022767,2]
[327805557,1716495049786,-500.0,0.00022784,2]
[327805558,1716495049795,-500.0,0.00022784,2]
[327805559,1716495049805,-500.0,0.00022784,2]
[327805560,1716495049814,-500.0,0.00022784,2]
[327805561,1716495049823,-514.8348,0.00022784,2]
[327805562,1716495049832,-250.0,0.00022788,2]
[327805563,1716495049841,-317.97841913,0.000228,2]
[327805564,1716495049850,-151.94633522,0.00022828,2]
[327805565,1716495049859,-274.61468466,0.00022836,2]
[327805566,1716495049868,-161.44222683,0.00022843,2]
[327805567,1716495049878,-151.0,0.00022889,7]
[327805568,1716495049887,-151.0,0.00022889,7]
[327805569,1716495049896,-223.45232,0.00022889,7]
[327805570,1716495049905,-151.0,0.00022889,7]
[327805571,1716495049914,-151.0,0.00022889,7]
[327805572,1716495049923,-151.0,0.00022889,7]
[327805573,1716495049933,-151.0,0.00022889,7]
[327805574,1716495049942,-151.0,0.00022889,7]
[327805575,1716495049951,-271.004898,0.00022889,7]
[327805576,1716495049961,-271.004898,0.00022889,7]
[327805577,1716495049971,-294.963847,0.00022898,7]
[327805578,1716495049980,-294.963847,0.00022898,7]
[327805579,1716495049989,-97469.85051569,0.00022898,2]
[327805580,1716495049999,-97469.85051563,0.00022898,2]
[327805581,1716495050008,-5300.0,0.000229,8]
[327805582,1716495050018,-1465.0,0.00022903,2]
[327805583,1716495050027,-298.357,0.00022903,2]
[327805584,1716495050036,-5760.0,0.00022903,2]
[327805585,1716495050046,-37904.0,0.00022903,2]
[327805586,1716495050055,-5135.0,0.00022903,2]
[327805587,1716495050064,-1061.0,0.00022903,2]
[327805588,1716495050073,-864.0,0.00022904,2]
[327805589,1716495050082,-1000.0,0.00023,4]
[327805590,1716495050092,-800.0,0.00023,2]
[327805591,1716495050102,-500.0,0.00023013,2]
[327805592,1716495050111,-500.0,0.00023013,2]
[327805593,1716495050121,-500.0,0.00023013,2]
[327805594,1716495050131,-500.0,0.00023013,2]
[327805595,1716495050140,-500.0,0.00023013,2]
[327805596,1716495050149,-500.0,0.00023013,2]
[327805597,1716495050158,-500.0,0.00023013,2]
[327805598,1716495050167,-500.0,0.00023013,2]
[327805599,1716495050177,-500.0,0.00023013,2]
[327805600,1716495050186,-649.39280095,0.00023013,2]
[327805601,1716495050195,-500.0,0.00023013,2]
[327805602,1716495050205,-500.0,0.00023013,2]
[327805603,1716495050217,-533.39,0.00023013,2]
[327805604,1716495050229,-500.0,0.00023013,2]
[327805605,1716495050238,-500.0,0.00023013,2]
[327805606,1716495050248,-500.0,0.00023013,2]
[327805607,1716495050259,-500.0,0.00023013,2]
[327805608,1716495050268,-620.68492516,0.00023013,2]
[327805609,1716495050277,-500.0,0.00023013,2]
[327805610,1716495050286,-724.57,0.00023013,2]
[327805611,1716495050295,-500.0,0.00023013,2]
[327805612,1716495050305,-500.0,0.00023013,2]
[327805613,1716495050314,-500.0,0.00023013,2]
[327805614,1716495050323,-500.0,0.00023013,2]
[327805615,1716495050332,-151.0,0.00023013,7]
[327805616,1716495050342,-150.0,0.00023013,2]
[327805617,1716495050351,-500.0,0.00023013,2]
[327805618,1716495050361,-444.72,0.00023013,2]
[327805619,1716495050370,-151.0,0.00023013,7]
[327805620,1716495050380,-211.06,0.00023013,2]
[327805621,1716495050390,-500.0,0.00023013,2]
[327805622,1716495050399,-314.0948524,0.00023013,2]
[327805623,1716495050409,-500.0,0.00023013,2]
[327805624,1716495050418,-151.0,0.00023013,7]
[327805625,1716495050427,-151.0,0.00023013,7]
[327805626,1716495050436,-570.85,0.00023013,2]
[327805627,1716495050446,-500.0,0.00023013,2]
[327805628,1716495050456,-500.0,0.00023013,2]
[327805629,1716495050465,-515.0,0.00023013,2]
[327805630,1716495050477,-591.74,0.00023013,2]
[327805631,1716495050486,-2864.0,0.00023013,2]
[327805632,1716495050495,-626.03236098,0.00023013,2]
[327805633,1716495050505,-500.0,0.00023013,2]
[327805634,1716495050514,-500.0,0.00023013,2]
[327805635,1716495050523,-943.12,0.00023013,2]
[327805636,1716495050532,-291.76383174,0.00023013,2]
[327805637,1716495050542,-1280.8,0.00023013,2]
[327805638,1716495050551,-457.77260631,0.00023013,2]
[327805639,1716495050561,-500.0,0.00023013,2]
[327805640,1716495050570,-706.51,0.00023013,2]
[327805641,1716495050579,-520.62,0.00023013,2]
[327805642,1716495050589,-500.0,0.00023013,2]
[327805643,1716495050599,-739.35,0.00023013,2]
[327805644,1716495050608,-931.2,0.00023013,2]
[327805645,1716495050617,-500.0,0.00023013,2]
[327805646,1716495050627,-500.0,0.00023013,2]
[327805647,1716495050636,-500.0,0.00023013,2]
[327805648,1716495050645,-500.0,0.00023013,2]
[327805649,1716495050654,-1024.24,0.00023013,2]
[327805650,1716495050664,-481.84,0.00023013,2]
[327805651,1716495050673,-500.0,0.00023013,2]
[327805652,1716495050683,-181.54179833,0.00023013,2]
[327805653,1716495050692,-500.0,0.00023013,2]
[327805654,1716495050702,-500.0,0.00023013,2]
[327805655,1716495050711,-500.0,0.00023013,2]
[327805656,1716495050723,-500.0,0.00023013,2]
[327805657,1716495050732,-621.39,0.00023013,2]
[327805658,1716495050741,-500.0,0.00023013,2]
[327805659,1716495050750,-918.01,0.00023013,2]
[327805660,1716495050759,-1482.24,0.00023013,2]
[327805661,1716495050769,-500.0,0.00023013,2]
[327805662,1716495050778,-500.0,0.00023013,2]
[327805663,1716495050787,-503.1,0.00023013,2]
[327805664,1716495050797,-500.0,0.00023013,2]
[327805665,1716495050806,-500.0,0.00023013,2]
[327805666,1716495050815,-500.0,0.00023013,2]
[327805667,1716495050824,-689.78,0.00023013,2]
[327805668,1716495050834,-541.94,0.00023013,2]
[327805669,1716495050843,-980.66,0.00023013,2]
[327805670,1716495050852,-500.0,0.00023013,2]
[327805671,1716495050861,-500.0,0.00023013,2]
[327805672,1716495050870,-500.0,0.00023013,2]
[327805673,1716495050879,-500.0,0.00023013,2]
[327805674,1716495050888,-919.72,0.00023013,2]
[327805675,1716495050897,-609.39,0.00023013,2]
[327805676,1716495050907,-500.0,0.00023013,2]
[327805677,1716495050917,-500.0,0.00023013,2]
[327805678,1716495050926,-500.0,0.00023013,2]
[327805679,1716495050936,-500.0,0.00023013,2]
[327805680,1716495050945,-826.38,0.00023013,2]
[327805681,1716495050954,-500.0,0.00023013,2]
[327805682,1716495050964,-1330.87,0.00023013,2]
[327805683,1716495050976,-500.0,0.00023013,2]
[327805684,1716495050985,-500.0,0.00023013,2]
[327805685,1716495050995,-1563.58,0.00023013,2]
[327805686,1716495051004,-500.0,0.00023013,2]
[327805687,1716495051014,-520.41,0.00023013,2]
[327805688,1716495051024,-500.0,0.00023013,2]
[327805689,1716495051033,-500.0,0.00023013,2]
[327805690,1716495051042,-500.0,0.00023013,2]
[327805691,1716495051051,-1168.78,0.00023013,2]
[327805692,1716495051061,-246.5,0.00023013,2]
[327805693,1716495051071,-167.78208372,0.00023013,2]
[327805694,1716495051080,-500.01,0.00023013,2]
[327805695,1716495051090,-500.0,0.00023013,2]
[327805696,1716495051099,-500.0,0.00023013,2]
[327805697,1716495051108,-500.0,0.00023013,2]
[327805698,1716495051117,-500.0,0.00023013,2]
[327805699,1716495051127,-500.0,0.00023013,2]
[327805700,1716495051136,-500.0,0.00023013,2]
[327805701,1716495051145,-500.0,0.00023013,2]
[327805702,1716495051155,-667.07,0.00023013,2]
[327805703,1716495051165,-224.88,0.00023013,2]
[327805704,1716495051175,-500.0,0.00023013,2]
[327805705,1716495051185,-5628.15,0.00023013,2]
[327805706,1716495051195,-504.21,0.00023013,2]
[327805707,1716495051204,-166.94211558,0.00023013,2]
[327805708,1716495051214,-7035.79,0.00023013,2]
[327805709,1716495051227,-186.93874623,0.00023013,2]
[327805710,1716495051238,-183.05385849,0.00023032,2]
[327805711,1716495051248,-500.0,0.00023062,2]
[327805712,1716495051258,-45227.31373901,0.00023087,2]
[327805713,1716495051268,-151.94633522,0.00023087,2]
[327805714,1716495051279,-151.0,0.00023087,7]
[327805715,1716495051289,-271.004898,0.00023087,7]
[327805716,1716495051299,-271.004898,0.00023087,7]
[327805717,1716495051309,-742.0,0.00023119,2]
[327805718,1716495051318,-600.0,0.0002315,2]
[327805719,1716495051328,-700.0,0.0002315,2]
[327805720,1716495051338,-151.0,0.00023177,7]
[327805721,1716495051347,-214.938134,0.00023177,7]
[327805722,1716495051357,-151.0,0.00023177,7]
[327805723,1716495051366,-151.0,0.00023177,7]
[327805724,1716495051375,-151.0,0.00023177,7]
[327805725,1716495051386,-271.521396,0.00023177,7]
[327805726,1716495051395,-294.963847,0.00023177,7]
[327805727,1716495051405,-294.963847,0.00023177,7]
[327805728,1716495051416,-150.0,0.000232,3]
[327805729,1716495051426,-200.0,0.00023236,2]
[327805730,1716495051435,-1000.0,0.00023236,2]
[327805731,1716495051445,-151.94633522,0.00023262,2]
[327805732,1716495051454,-500.0,0.00023287,2]
[327805733,1716495051464,-500.0,0.00023287,2]
[327805734,1716495051476,-500.0,0.00023287,2]
[327805735,1716495051485,-500.0,0.00023287,2]
[327805736,1716495051494,-500.0,0.00023287,2]
[327805737,1716495051503,-500.0,0.00023287,2]
[327805738,1716495051512,-500.0,0.00023287,2]
[327805739,1716495051522,-500.0,0.00023287,2]
[327805740,1716495051531,-500.0,0.00023287,2]
[327805741,1716495051541,-500.0,0.00023287,2]
[327805742,1716495051550,-500.0,0.00023287,2]
[327805743,1716495051560,-533.39,0.00023287,2]
[327805744,1716495051569,-500.0,0.00023287,2]
[327805745,1716495051578,-500.0,0.00023287,2]
[327805746,1716495051588,-500.0,0.00023287,2]
[327805747,1716495051597,-500.0,0.00023287,2]
[327805748,1716495051606,-277.99,0.00023287,2]
[327805749,1716495051616,-724.57,0.00023287,2]
[327805750,1716495051624,-501.55695023,0.00023287,2]
[327805751,1716495051633,-500.0,0.00023287,2]
[327805752,1716495051643,-500.0,0.00023287,2]
[327805753,1716495051652,-500.0,0.00023287,2]
[327805754,1716495051662,-150.0,0.00023287,2]
[327805755,1716495051671,-595.80560181,0.00023287,2]
[327805756,1716495051681,-500.0,0.00023287,2]
[327805757,1716495051690,-500.0,0.00023287,2]
[327805758,1716495051699,-570.85,0.00023287,2]
[327805759,1716495051709,-500.0,0.00023287,2]
[327805760,1716495051718,-585.71402989,0.00023287,2]
[327805761,1716495051730,-515.0,0.00023287,2]
[327805762,1716495051739,-591.74,0.00023287,2]
[327805763,1716495051748,-2864.0,0.00023287,2]
[327805764,1716495051757,-500.0,0.00023287,2]
[327805765,1716495051766,-500.0,0.00023287,2]
[327805766,1716495051775,-943.12,0.00023287,2]
[327805767,1716495051785,-1280.8,0.00023287,2]
[327805768,1716495051794,-500.0,0.00023287,2]
[327805769,1716495051803,-706.51,0.00023287,2]
[327805770,1716495051812,-520.62,0.00023287,2]
[327805771,1716495051821,-500.0,0.00023287,2]
[327805772,1716495051831,-739.35,0.00023287,2]
[327805773,1716495051840,-931.2,0.00023287,2]
[327805774,1716495051851,-500.0,0.00023287,2]
[327805775,1716495051860,-500.0,0.00023287,2]
[327805776,1716495051870,-500.0,0.00023287,2]
[327805777,1716495051880,-500.0,0.00023287,2]
[327805778,1716495051889,-1024.24,0.00023287,2]
[327805779,1716495051899,-633.330447,0.00023287,2]
[327805780,1716495051909,-465.64795947,0.00023287,2]
[327805781,1716495051918,-500.0,0.00023287,2]
[327805782,1716495051927,-500.0,0.00023287,2]
[327805783,1716495051937,-500.0,0.00023287,2]
[327805784,1716495051946,-621.39,0.00023287,2]
[327805785,1716495051956,-462.27657118,0.00023287,2]
[327805786,1716495051965,-918.01,0.00023287,2]
[327805787,1716495051979,-1482.24,0.00023287,2]
[327805788,1716495051989,-500.0,0.00023287,2]
[327805789,1716495051998,-500.0,0.00023287,2]
[327805790,1716495052008,-503.1,0.00023287,2]
[327805791,1716495052018,-500.0,0.00023287,2]
[327805792,1716495052028,-500.0,0.00023287,2]
[327805793,1716495052037,-500.0,0.00023287,2]
[327805794,1716495052047,-689.78,0.00023287,2]
[327805795,1716495052057,-541.94,0.00023287,2]
[327805796,1716495052067,-980.66,0.00023287,2]
[327805797,1716495052077,-500.0,0.00023287,2]
[327805798,1716495052087,-500.0,0.00023287,2]
[327805799,1716495052096,-500.0,0.00023287,2]
[327805800,1716495052105,-919.72,0.00023287,2]
[327805801,1716495052115,-609.39,0.00023287,2]
[327805802,1716495052125,-500.0,0.00023287,2]
[327805803,1716495052134,-500.0,0.00023287,2]
[327805804,1716495052144,-500.0,0.00023287,2]
[327805805,1716495052153,-500.0,0.00023287,2]
[327805806,1716495052162,-500.0,0.00023287,2]
[327805807,1716495052172,-826.38,0.00023287,2]
[327805808,1716495052181,-500.0,0.00023287,2]
[327805809,1716495052191,-1330.87,0.00023287,2]
[327805810,1716495052201,-500.0,0.00023287,2]
[327805811,1716495052213,-500.0,0.00023287,2]
[327805812,1716495052227,-1563.58,0.00023287,2]
[327805813,1716495052236,-500.0,0.00023287,2]
[327805814,1716495052245,-500.0,0.00023287,2]
[327805815,1716495052257,-500.0,0.00023287,2]
[327805816,1716495052267,-500.0,0.00023287,2]
[327805817,1716495052277,-1168.78,0.00023287,2]
[327805818,1716495052287,-500.01,0.00023287,2]
[327805819,1716495052300,-500.0,0.00023287,2]
[327805820,1716495052311,-500.0,0.00023287,2]
[327805821,1716495052321,-500.0,0.00023287,2]
[327805822,1716495052331,-500.0,0.00023287,2]
[327805823,1716495052341,-500.0,0.00023287,2]
[327805824,1716495052351,-500.0,0.00023287,2]
[327805825,1716495052361,-500.0,0.00023287,2]
[327805826,1716495052370,-667.07,0.00023287,2]
[327805827,1716495052380,-500.0,0.00023287,2]
[327805828,1716495052390,-5628.15,0.00023287,2]
[327805829,1716495052399,-7035.79,0.00023287,2]
[327805830,1716495052409,-4171.0,0.00023288,2]
[327805831,1716495052418,-200.0,0.00023357,2]
[327805832,1716495052428,-2005.18444528,0.000234,2]
[327805833,1716495052437,-1022.0,0.000234,2]
[327805834,1716495052447,-500.0,0.0002341,2]
[327805835,1716495052457,-154.09859632,0.00023425,2]
[327805836,1716495052466,-18895.03851355,0.00023426,2]
[327805837,1716495052479,-1000.0,0.000235,4]
[327805838,1716495052488,-1000.0,0.000235,4]
[327805839,1716495052498,-1000.0,0.000235,2]
[327805840,1716495052508,-151.94633522,0.000235,2]
[327805841,1716495052517,-3714.0,0.000235,3]
[327805842,1716495052527,-152.46718995,0.00023501,2]
[327805843,1716495052536,-274.61468466,0.00023559,2]
[327805844,1716495052546,-500.0,0.00023561,2]
[327805845,1716495052555,-500.0,0.00023561,2]
[327805846,1716495052565,-500.0,0.00023561,2]
[327805847,1716495052574,-500.0,0.00023561,2]
[327805848,1716495052584,-500.0,0.00023561,2]
[327805849,1716495052593,-500.0,0.00023561,2]
[327805850,1716495052603,-500.0,0.00023561,2]
[327805851,1716495052612,-500.0,0.00023561,2]
[327805852,1716495052622,-151.0,0.00023561,7]
[327805853,1716495052632,-500.0,0.00023561,2]
[327805854,1716495052641,-500.0,0.00023561,2]
[327805855,1716495052651,-500.0,0.00023561,2]
[327805856,1716495052661,-533.39,0.00023561,2]
[327805857,1716495052670,-500.0,0.00023561,2]
[327805858,1716495052680,-573.862045,0.00023561,2]
[327805859,1716495052689,-500.0,0.00023561,2]
[327805860,1716495052699,-500.0,0.00023561,2]
[327805861,1716495052708,-724.57,0.00023561,2]
[327805862,1716495052718,-500.0,0.00023561,2]
[327805863,1716495052729,-500.0,0.00023561,2]
[327805864,1716495052738,-500.0,0.00023561,2]
[327805865,1716495052748,-151.0,0.00023561,7]
[327805866,1716495052757,-150.0,0.00023561,2]
[327805867,1716495052767,-151.0,0.00023561,7]
[327805868,1716495052777,-500.0,0.00023561,2]
[327805869,1716495052786,-500.0,0.00023561,2]
[327805870,1716495052795,-151.0,0.00023561,7]
[327805871,1716495052805,-294.963847,0.00023561,7]
[327805872,1716495052814,-294.963847,0.00023561,7]
[327805873,1716495052823,-570.85,0.00023561,2]
[327805874,1716495052832,-500.0,0.00023561,2]
[327805875,1716495052842,-515.0,0.00023561,2]
[327805876,1716495052851,-591.74,0.00023561,2]
[327805877,1716495052861,-2864.0,0.00023561,2]
[327805878,1716495052871,-558.89552455,0.00023561,2]
[327805879,1716495052880,-500.0,0.00023561,2]
[327805880,1716495052890,-943.12,0.00023561,2]
[327805881,1716495052899,-1280.8,0.00023561,2]
[327805882,1716495052909,-500.0,0.00023561,2]
[327805883,1716495052918,-706.51,0.00023561,2]
[327805884,1716495052927,-520.62,0.00023561,2]
[327805885,1716495052937,-500.0,0.00023561,2]
[327805886,1716495052946,-739.35,0.00023561,2]
[327805887,1716495052956,-931.2,0.00023561,2]
[327805888,1716495052965,-500.0,0.00023561,2]
[327805889,1716495052977,-500.0,0.00023561,2]
[327805890,1716495052987,-500.0,0.00023561,2]
[327805891,1716495052996,-500.0,0.00023561,2]
[327805892,1716495053006,-1024.24,0.00023561,2]
[327805893,1716495053015,-500.0,0.00023561,2]
[327805894,1716495053025,-500.0,0.00023561,2]
[327805895,1716495053034,-500.0,0.00023561,2]
[327805896,1716495053044,-621.39,0.00023561,2]
[327805897,1716495053053,-1482.24,0.00023561,2]
[327805898,1716495053063,-918.01,0.00023561,2]
[327805899,1716495053072,-500.0,0.00023561,2]
[327805900,1716495053082,-500.0,0.00023561,2]
[327805901,1716495053092,-503.1,0.00023561,2]
[327805902,1716495053101,-474.95527282,0.00023561,2]
[327805903,1716495053111,-151.0,0.00023561,7]
[327805904,1716495053120,-500.0,0.00023561,2]
[327805905,1716495053129,-500.0,0.00023561,2]
[327805906,1716495053139,-689.78,0.00023561,2]
[327805907,1716495053148,-541.94,0.00023561,2]
[327805908,1716495053158,-980.66,0.00023561,2]
[327805909,1716495053167,-500.0,0.00023561,2]
[327805910,1716495053177,-500.0,0.00023561,2]
[327805911,1716495053186,-512.3372031,0.00023561,2]
[327805912,1716495053196,-919.72,0.00023561,2]
[327805913,1716495053205,-609.39,0.00023561,2]
[327805914,1716495053216,-500.0,0.00023561,2]
[327805915,1716495053229,-500.0,0.00023561,2]
[327805916,1716495053238,-500.0,0.00023561,2]
[327805917,1716495053248,-500.0,0.00023561,2]
[327805918,1716495053259,-500.0,0.00023561,2]
[327805919,1716495053269,-826.38,0.00023561,2]
[327805920,1716495053279,-500.0,0.00023561,2]
[327805921,1716495053289,-1330.87,0.00023561,2]
[327805922,1716495053299,-500.0,0.00023561,2]
[327805923,1716495053310,-500.0,0.00023561,2]
[327805924,1716495053320,-1563.58,0.00023561,2]
[327805925,1716495053330,-500.0,0.00023561,2]
[327805926,1716495053340,-500.0,0.00023561,2]
[327805927,1716495053350,-500.0,0.00023561,2]
[327805928,1716495053360,-500.0,0.00023561,2]
[327805929,1716495053370,-1168.78,0.00023561,2]
[327805930,1716495053380,-500.0,0.00023561,2]
[327805931,1716495053390,-500.01,0.00023561,2]
[327805932,1716495053400,-500.0,0.00023561,2]
[327805933,1716495053410,-500.0,0.00023561,2]
[327805934,1716495053420,-500.0,0.00023561,2]
[327805935,1716495053430,-500.0,0.00023561,2]
[327805936,1716495053440,-500.0,0.00023561,2]
[327805937,1716495053450,-500.0,0.00023561,2]
[327805938,1716495053460,-271.004898,0.00023561,7]
[327805939,1716495053470,-271.004898,0.00023561,7]
[327805940,1716495053481,-667.07,0.00023561,2]
[327805941,1716495053492,-500.0,0.00023561,2]
[327805942,1716495053502,-5628.15,0.00023561,2]
[327805943,1716495053512,-7035.79,0.00023561,2]
[327805944,1716495053521,-274.61468466,0.00023571,2]
[327805945,1716495053531,-1395.0,0.000236,2]
[327805946,1716495053541,-167.0,0.00023656,2]
[327805947,1716495053550,-12368.21904831,0.00023666,2]
[327805948,1716495053560,-600.0,0.00023698,2]
[327805949,1716495053570,-700.0,0.00023698,2]
[327805950,1716495053581,-150.0,0.00023699,2]
[327805951,1716495053591,-150.0,0.000237,3]
[327805952,1716495053601,-154.20664879,0.00023735,2]
[327805953,1716495053610,-370.01341768,0.00023735,2]
[327805954,1716495053620,-210.97006897,0.00023744,2]
[327805955,1716495053630,-200.0,0.00023757,2]
[327805956,1716495053640,-1000.0,0.00023757,2]
[327805957,1716495053650,-500.0,0.00023757,2]
[327805958,1716495053659,-200.0,0.00023757,2]
[327805959,1716495053669,-1407.61630525,0.00023805,2]
[327805960,1716495053680,-154.20664879,0.00023823,2]
[327805961,1716495053691,-500.0,0.00023835,2]
[327805962,1716495053701,-500.0,0.00023835,2]
[327805963,1716495053711,-500.0,0.00023835,2]
[327805964,1716495053724,-500.0,0.00023835,2]
[327805965,1716495053734,-500.0,0.00023835,2]
[327805966,1716495053743,-500.0,0.00023835,2]
[327805967,1716495053753,-500.0,0.00023835,2]
[327805968,1716495053762,-500.0,0.00023835,2]
[327805969,1716495053772,-151.0,0.00023835,7]
[327805970,1716495053782,-168.63745869,0.00023835,2]
[327805971,1716495053792,-500.0,0.00023835,2]
[327805972,1716495053802,-500.0,0.00023835,2]
[327805973,1716495053812,-533.39,0.00023835,2]
[327805974,1716495053822,-500.0,0.00023835,2]
[327805975,1716495053832,-500.0,0.00023835,2]
[327805976,1716495053841,-500.0,0.00023835,2]
[327805977,1716495053851,-724.57,0.00023835,2]
[327805978,1716495053861,-500.0,0.00023835,2]
[327805979,1716495053871,-500.0,0.00023835,2]
[327805980,1716495053881,-500.0,0.00023835,2]
[327805981,1716495053891,-150.0,0.00023835,2]
[327805982,1716495053901,-151.0,0.00023835,7]
[327805983,1716495053911,-500.0,0.00023835,2]
[327805984,1716495053920,-500.0,0.00023835,2]
[327805985,1716495053930,-151.0,0.00023835,7]
[327805986,1716495053940,-294.963847,0.00023835,7]
[327805987,1716495053951,-294.963847,0.00023835,7]
[327805988,1716495053960,-570.85,0.00023835,2]
[327805989,1716495053970,-500.0,0.00023835,2]
[327805990,1716495053983,-515.0,0.00023835,2]
[327805991,1716495053993,-591.74,0.00023835,2]
[327805992,1716495054003,-2864.0,0.00023835,2]
[327805993,1716495054013,-500.0,0.00023835,2]
[327805994,1716495054023,-943.12,0.00023835,2]
[327805995,1716495054033,-1280.8,0.00023835,2]
[327805996,1716495054043,-500.0,0.00023835,2]
[327805997,1716495054053,-706.51,0.00023835,2]
[327805998,1716495054063,-520.62,0.00023835,2]
[327805999,1716495054073,-151.80113339,0.00023835,2]
[327806000,1716495054270,-739.35,0.00023835,2]
[327806001,1716495054281,-931.2,0.00023835,2]
[327806002,1716495054291,-500.0,0.00023835,2]
[327806003,1716495054302,-568.11050237,0.00023835,2]
[327806004,1716495054312,-500.0,0.00023835,2]
[327806005,1716495054322,-500.0,0.00023835,2]